[Event "Israeli Women Championship 2022"]
[Site "Yosiah Arad"]
[Date "2022.12.10"]
[Round "6.2"]
[White "Orian, Noga"]
[Black "Levitan, Ronit"]
[Result "0-1"]
[ECO "D35"]
[WhiteElo "1947"]
[BlackElo "1989"]
[Annotator "TA"]
[PlyCount "88"]
[EventDate "2022.12.05"]
[EventType "tourn"]
[EventCountry "ISR"]
[SourceTitle "playchess.com"]
[Source "ChessBase"]
[SourceQuality "1"]
[TimeControl "40/5400+30:1800+30"]

{[%evp 17,88,8,15,-12,-3,-7,-9,-178,-172,-167,-162,-162,-171,-162,-158,-175,-175,-175,-184,-174,-179,-202,-220,-242,-243,-239,-235,-253,-256,-257,-256,-261,-258,-260,-255,-258,-226,-244,-218,-270,-261,-301,-293,-296,-305,-322,-316,-313,-322,-343,-343,-320,-305,-356,-337,-403,-394,-375,-391,-451,-445,-576,-570,-656,-643,-684,-660,-933,-744,-729,-715,-672,-663]} 1. c4 {[%emt 0:02:10]} e6 {[%emt 0:00:40]} 2. Nc3 {[%emt 0:00:15]} d5 {[%emt 0:00:28]} 3. d4 {[%emt 0:00:50]} Be7 {[%emt 0:00:35]} 4. cxd5 {[%emt 0:00:40]} exd5 {[%emt 0:00:07]} 5. Bf4 {[%emt 0:00:31]} Nf6 {[%emt 0:00:32]} 6. e3 {[%emt 0:00:44]} O-O {[%emt 0:02:28]} 7. Bd3 {[%emt 0:00:06]} c5 {[%emt 0:05:39]} 8. dxc5 {[%emt 0:02:01]} Bxc5 {[%emt 0:00:28]} 9. Nf3 {[%emt 0:01:00]} Nc6 {[%emt 0:00:25]} 10. h3 {[%emt 0:04:46] D35: Queen's Gambit Declined: Exchange Variation.} d4 {[%emt 0:06:53]} 11. exd4 {[%emt 0:00:45]} Re8+ {[%emt 0:04:43] [#]} 12. Ne2 $146 {[%emt 0:02:28]} (12. Be3 $11 {and White has nothing to worry.} Nxd4 13. Nxd4 Bxd4 14. Bb5 (14. O-O Bxe3 15. fxe3 Qb6 $17)) ({Predecessor:} 12. Be2 Nxd4 13. Nxd4 Bxd4 14. O-O Bf5 15. Bf3 Be4 16. Nxe4 Nxe4 17. Qb3 Qf6 18. Bxe4 Qxf4 19. Bxb7 {1-0 (66) Kozlowski,T (2055)-Jeanjean,D (2145) France 1998}) 12... Nxd4 $19 {[%emt 0:04:13]} 13. Nfxd4 {[%emt 0:00:10]} Qxd4 {[%emt 0:06:11]} (13... Bxd4 14. O-O Nd5 15. Bg3 Bxb2 16. Bxh7+ Kxh7 17. Qc2+ Kg8 18. Qxb2 $11) 14. O-O {[%emt 0:01:05] [#]} Rxe2 {[%emt 0:09:54][%mdl 512]} 15. Bxe2 {[%emt 0:00:07] Strongly threatening Be3.} Qxf4 {[%emt 0:00:12]} 16. Qd8+ {[%emt 0:00:10]} Bf8 {[%emt 0:00:07]} 17. Rac1 {[%emt 0:01:28] [#]} Qb8 {[%emt 0:04:35]} 18. Bf3 {[%emt 0:08:51]} Be6 {[%emt 0:07:03][%csl LRa2,LRd8]} 19. Qxb8 {[%emt 0:00:17]} Rxb8 {[%emt 0:00:05]} 20. Rfd1 {[%emt 0:00:51]} b6 {[%emt 0:07:16]} (20... Bxa2 $2 {loses.} 21. Rc7) 21. a3 {[%emt 0:05:13]} a5 {[%emt 0:02:37]} 22. Rc7 {[%emt 0:03:36]} g6 {[%emt 0:01:33]} 23. Rb7 {[%emt 0:02:47]} Rxb7 {[%emt 0:00:06]} 24. Bxb7 {[%emt 0:00:02]} Bc5 {[%emt 0:00:49]} 25. Rd8+ {[%emt 0:00:11]} Kg7 {[%emt 0:00:07]} 26. Bc6 {[%emt 0:00:23]} Bb3 {[%emt 0:02:24]} 27. g3 {[%emt 0:02:49]} Ng8 {[%emt 0:03:57]} 28. g4 {[%emt 0:06:45]} Ne7 {[%emt 0:00:54]} 29. Bb7 {[%emt 0:00:39]} Kf6 {[%emt 0:05:04]} 30. Rd3 {[%emt 0:04:08]} Bc4 {[%emt 0:01:15]} 31. Rc3 {[%emt 0:00:40]} Be6 {[%emt 0:00:18]} 32. Rd3 {[%emt 0:03:21]} Ke5 {[%emt 0:01:01]} 33. Kg2 {[%emt 0:02:30]} Nd5 {[%emt 0:02:35] Threatens to win with ...Nf4+.} 34. Kg3 {[%emt 0:01:32]} Nf4 {[%emt 0:03:38] Inhibits h4.} 35. Rd1 {[%emt 0:02:17]} g5 {[%emt 0:09:22]} 36. Re1+ {[%emt 0:09:28]} Kd4 {[%emt 0:02:02]} 37. h4 {[%emt 0:02:07]} h6 {[%emt 0:01:33][%cal Bh7h6,Bh6g5][%mdl 32]} 38. Kf3 {[%emt 0:01:31]} Kd3 {[%emt 0:03:26] Black is clearly winning.} 39. Rb1 {[%emt 0:04:44]} Bb3 {[%emt 0:01:06] Inhibits b4.} 40. hxg5 {[%emt 0:03:00]} hxg5 {[%emt 0:00:07]} 41. Rc1 {[%emt 0:30:12]} Kd2 {[%emt 0:08:47]} 42. Rc3 {[%emt 0:00:00]} Bd1+ {[%emt 0:02:45]} 43. Ke4 {[%emt 0:00:00]} Bxg4 {[%emt 0:00:10]} 44. Ba6 {[%emt 0:00:00]} Bxf2 {[%emt 0:05:59] White did not feel at home in the position after the opening.   Weighted Error Value: White=0.41/Black=0.10 (very precise)} 0-1

[Event "Israeli Women Championship 2022"]
[Site "Yosiah Arad"]
[Date "2022.12.10"]
[Round "6.3"]
[White "Ovechkin, Lilia"]
[Black "Reprun, Nadejda"]
[Result "1/2-1/2"]
[ECO "D00"]
[WhiteElo "1680"]
[BlackElo "1979"]
[Annotator "TA"]
[PlyCount "38"]
[EventDate "2022.12.05"]
[EventType "tourn"]
[EventCountry "ISR"]
[SourceTitle "playchess.com"]
[Source "ChessBase"]
[SourceQuality "1"]
[TimeControl "40/5400+30:1800+30"]

{[%evp 12,38,-6,0,2,11,6,9,14,13,13,0,-1,-10,0,0,25,22,40,0,0,-10,116,0,0,0,0,-16,-3]} 1. d4 {[%emt 0:00:14]} d5 {[%emt 0:00:04]} 2. e3 {[%emt 0:00:36]} Nf6 {[%emt 0:00:27]} 3. Bd3 {[%emt 0:00:16]} c5 {[%emt 0:02:40]} 4. c3 {[%emt 0:01:07]} e6 {[%emt 0:01:05]} 5. Nd2 {[%emt 0:00:41]} Nc6 {[%emt 0:02:03]} 6. f4 {[%emt 0:01:23]} Be7 {[%emt 0:08:35]} 7. Ngf3 {[%emt 0:00:21]} Ng4 {[%emt 0:06:50] D00: 1 d4 d5: Unusual lines.} 8. Qe2 {[%emt 0:07:37]} f5 {[%emt 0:02:00]} 9. b3 {[%emt 0:01:18]} O-O {[%emt 0:02:04]} 10. Bb2 {[%emt 0:02:33]} Bd7 {[%emt 0:10:19] [#]} 11. g3 $146 {[%emt 0:13:16]} ({Predecessor:} 11. a3 Qb6 12. Rb1 Nf6 13. b4 c4 {½-½ (13) Gareis,R (1878)-Kohn,A (1889) Mecklenburg VP 2011}) 11... a5 {[%emt 0:09:25]} 12. a4 {[%emt 0:04:21]} Rb8 {[%emt 0:04:12]} 13. O-O {[%emt 0:17:16]} Na7 {[%emt 0:02:36]} 14. Ne5 {[%emt 0:03:01]} Nxe5 {[%emt 0:01:48]} 15. fxe5 {[%emt 0:00:38]} ({Better is} 15. dxe5 $14 g6 16. Rfb1) 15... b5 $11 {[%emt 0:01:38]} 16. axb5 {[%emt 0:02:02]} cxd4 {[%emt 0:02:03]} (16... Nxb5 $11 17. Ra2 Na7) 17. exd4 {[%emt 0:00:51]} ({White must play} 17. c4 $16) 17... Bxb5 {[%emt 0:00:06] The position is equal.} 18. Bxb5 {[%emt 0:03:31]} Nxb5 {[%emt 0:01:02]} 19. Ra4 {[%emt 0:00:18]} Qc7 {[%emt 0:04:49] Weighted Error Value: White=0.18 (very precise) /Black=0.22 (precise)} 1/2-1/2

[Event "Israeli Women Championship 2022"]
[Site "Yosiah Arad"]
[Date "2022.12.10"]
[Round "6.4"]
[White "Brusilovski, Lena"]
[Black "Tashkinova, Sofiia"]
[Result "1-0"]
[ECO "C11"]
[WhiteElo "1800"]
[BlackElo "2006"]
[Annotator "TA"]
[PlyCount "151"]
[EventDate "2022.12.05"]
[EventType "tourn"]
[EventCountry "ISR"]
[SourceTitle "playchess.com"]
[Source "ChessBase"]
[SourceQuality "1"]
[TimeControl "40/5400+30:1800+30"]

{[%evp 10,151,0,-45,-45,-49,-41,-35,-68,-104,0,0,0,0,16,-56,25,25,25,27,27,31,26,0,0,0,129,104,133,135,268,309,299,266,365,404,409,393,370,394,347,356,319,250,227,0,0,0,0,-7,-9,-5,0,-45,0,0,0,0,0,-8,0,0,0,0,0,0,0,0,0,0,0,0,0,0,0,0,133,125,118,0,0,0,0,0,0,0,0,0,129,119,137,38,33,45,522,-55,496,488,465,0,0,0,0,-29,0,-83,-83,-137,73,73,82,53,61,0,403,403,349,264,231,0,2216,2124,1165,1115,29980,29979,29976,29974,5193,192,182,171,161,0,0,0,0,0,0,0,29987,29988,29988,672]} 1. e4 {[%emt 0:00:42][%cal Be2e4,Be4e5][%mdl 32]} e6 {[%emt 0:00:09]} 2. Nf3 {[%emt 0:00:14]} d5 {[%emt 0:00:23]} 3. Nc3 {[%emt 0:00:16]} Nf6 {[%emt 0:08:31]} 4. e5 {[%emt 0:01:42]} Nfd7 {[%emt 1:23:27]} 5. d4 {[%emt 0:00:19]} c5 {[%emt 0:00:00]} 6. Bg5 {[%emt 0:01:07]} Qb6 {[%emt 0:00:00] C11: French: Classical System: 4 e5 and 4 Bg5 dxe4.} 7. dxc5 {[%emt 0:00:38]} Bxc5 {[%emt 0:00:00]} 8. Qd2 {[%emt 0:00:26]} (8. Bb5 Bxf2+ 9. Kf1 a6 $17) 8... Nc6 {[%emt 0:00:00][%cal Oc5f2] Black is slightly better.} (8... Qxb2 9. Rb1 Qa3 10. Nb5 Qxa2 11. Nc7+ Kf8 12. Rc1 $16) 9. Na4 {[%emt 0:01:28] [#]} Qc7 {[%emt 0:00:00]} (9... Bxf2+ $1 $17 {[%mdl 512]} 10. Qxf2 Qb4+ 11. c3 (11. Nc3 $2 Qxb2 12. Rc1 Qxc3+ 13. Bd2 Qb2 $19) 11... Qxa4) 10. Nxc5 $11 {[%emt 0:01:42]} Nxc5 {[%emt 0:00:00][%cal Bd7c5,Bc5e4,Be4c3][%mdl 32] [#]} 11. Qe3 $146 {[%emt 0:02:21]} ({Predecessor:} 11. Bf4 Bd7 12. c3 O-O 13. Be2 Na5 14. O-O Nc4 15. Qc2 h6 16. b3 Na3 17. Qb2 {½-½ (40) Edwards,E (1686)-Zuniga Samano,P (1803) Internet 2022}) 11... Ne4 {[%emt 0:00:00]} 12. Bd3 {[%emt 0:02:23]} (12. Bf4 $11) 12... Qa5+ {[%emt 0:00:00]} (12... h6 $15 13. Bh4 g5) 13. c3 {[%emt 0:01:39]} h6 {[%emt 0:00:00]} 14. Bf4 {[%emt 0:02:04]} (14. Bxe4 $2 dxe4 15. Qxe4 (15. b4 $2 Qc7 $19) 15... hxg5 $19) 14... g5 {[%emt 0:00:00]} 15. Bg3 {[%emt 0:00:59]} Nxc3 {[%emt 0:00:00]} 16. O-O {[%emt 0:08:57][%cal Bh1f1,Bf1c1,Bc1c5][%mdl 32]} Na4 {[%emt 0:00:00]} 17. h4 {[%emt 0:03:17]} g4 {[%emt 0:00:00]} (17... Qb6 $11) 18. Nd4 $16 {[%emt 0:04:57]} Nxd4 {[%emt 0:00:00]} 19. Qxd4 {[%emt 0:00:55]} h5 {[%emt 0:00:00]} (19... Bd7 $16) 20. b3 $1 $18 {[%emt 0:00:51]} Nb6 {[%emt 0:00:00]} 21. Rfc1 {[%emt 0:03:10]} Bd7 {[%emt 0:00:00]} 22. Rc5 {[%emt 0:02:43] Inhibits Nc8.} Qa3 {[%emt 0:00:00]} 23. Bf4 {[%emt 0:01:16]} Rc8 {[%emt 0:00:00]} 24. Rac1 {[%emt 0:03:21]} Rxc5 {[%emt 0:00:00]} 25. Rxc5 {[%emt 0:00:11]} Bc6 {[%emt 0:00:00]} 26. Bc1 {[%emt 0:00:42] A strong pair of Bishops.} Qxa2 {[%emt 0:00:00]} 27. Qc3 {[%emt 0:02:30]} (27. b4 $1 $18) 27... d4 {[%emt 0:00:00]} 28. Qxd4 {[%emt 0:02:21] Bg5 is the strong threat.} (28. Qb4 $5 g3 $8 29. Rc2 $11) 28... g3 {[%emt 0:00:00]} 29. Rc2 {[%emt 0:01:21]} Qxb3 {[%emt 0:00:00]} 30. fxg3 {[%emt 0:00:42]} Qd5 {[%emt 0:00:00]} 31. Qe3 {[%emt 0:00:26][%cal Oe3g5]} (31. Qc3 $5) 31... Rg8 {[%emt 0:00:00][%cal Ob6c4] Prevents Qg5. Hoping for ...Nc4!} (31... Nc4 $5 {[%cal Rc4e3]} 32. Qe2 Nxe5 $11) 32. Kh2 {[%emt 0:03:00]} Rg4 {[%emt 0:00:00]} 33. Rd2 {[%emt 0:02:46][%cal Od3g6]} Qd4 {[%emt 0:02:26]} 34. Qe2 {[%emt 0:00:35]} Nc4 {[%emt 0:01:18]} (34... Nd7 {is more complex.} 35. Bf5 Rxh4+ 36. gxh4 Qf4+) 35. Bxc4 {[%emt 0:01:37]} Qxc4 {[%emt 0:00:19]} 36. Qe3 {[%emt 0:00:42]} Bd5 {[%emt 0:02:01]} (36... Qxc1 37. Rd8+ $1 Kxd8 38. Qxc1 $16) 37. Ba3 {[%emt 0:01:53]} Qb3 {[%emt 0:01:35]} 38. Rd3 {[%emt 0:01:19]} Qa2 {[%emt 0:02:34][%csl Gd5][%cal Ra2g2]} 39. Rd2 {[%emt 0:00:09]} Qb3 {[%emt 0:00:56]} 40. Rd3 {[%emt 0:00:26]} Qc4 {[%emt 0:01:35]} 41. Bd6 {[%emt 0:34:37][%cal Oe3a7]} Qe4 {[%emt 0:08:36][%csl Gd5][%cal Re4g2]} 42. Qd2 {[%emt 0:00:00]} a6 {[%emt 0:05:28]} (42... Bc6 $1 $11) 43. Rc3 $16 {[%emt 0:00:00][%mdl 1024] White has strong compensation.} Bc6 {[%emt 0:02:16]} 44. Rc2 {[%emt 0:00:00]} (44. Qf2 $16) 44... Rg6 $11 {[%emt 0:02:27]} 45. Qf2 {[%emt 0:00:00][%cal Of2a7] White threatens Qa7! and mate.} Qd3 {[%emt 0:04:31]} 46. Rd2 {[%emt 0:00:00]} Qb3 {[%emt 0:02:14]} 47. Rd4 {[%emt 0:00:00]} Qb6 {[%emt 0:03:06]} 48. Qd2 {[%emt 0:00:00]} Qb3 {[%emt 0:04:13]} (48... a5 $11) 49. Rd3 $1 $16 {[%emt 0:00:00]} Qa4 {[%emt 0:02:09]} 50. Bb4 {[%emt 0:00:00]} (50. Ba3 $1 $16 {[%csl Gd2][%cal Rd3d8]} Bd5 51. Rc3) 50... Bd5 $14 {[%emt 0:01:05]} 51. Rc3 {[%emt 0:00:00][%mdl 64]} Qa2 $2 {[%emt 0:01:50][%mdl 8192]} (51... Qxb4 $2 52. Rc8+ Kd7 53. Qxb4 $18) ({Better is} 51... Qd7 $14) 52. Rc8+ $18 {[%emt 0:00:00]} Kd7 {[%emt 0:00:25]} 53. Rc2 {[%emt 0:00:00]} Qb3 {[%emt 0:00:26] [#]} 54. Bc3 $2 {[%emt 0:00:00]} ({White must play} 54. Qf2 $1 $18 {[%cal Rf2f7]} f5 (54... Qxg3+ 55. Qxg3) 55. Qc5 Qxg3+ 56. Kg1 Qxg2+ 57. Rxg2 Rxg2+ 58. Kf1) 54... Ke8 $11 {[%emt 0:01:05]} 55. Rb2 {[%emt 0:00:00]} Qc4 {[%emt 0:00:20]} 56. Rb4 {[%emt 0:00:00]} Qc6 {[%emt 0:01:12][%cal Od5g2]} 57. Rf4 {[%emt 0:00:00]} (57. Rb1 $11 {remains equal.}) 57... Rg4 $17 {[%emt 0:00:30]} 58. Rf2 {[%emt 0:00:00]} (58. Rd4 $142) 58... Rg6 $2 {[%emt 0:00:58]} (58... Qc5 $17 {and life is bright. And now ...Rc4 would win.} 59. Rf4 Rxf4 60. gxf4 Qb5) 59. Bb4 $16 {[%emt 0:00:00]} Qc4 {[%emt 0:00:24]} 60. Bd6 {[%emt 0:00:00]} Qa4 {[%emt 0:00:59]} 61. Qe3 {[%emt 0:00:00]} (61. Qc3 Qc6 62. Qb2) (61. Qc3 $14 Qc6 62. Qd4) 61... Qc6 $2 {[%emt 0:00:54][%mdl 8192]} (61... Qc4) (61... Qc4 $1 $11 {and Black stays safe.}) 62. Qf4 $18 {[%emt 0:00:00]} Qd7 {[%emt 0:00:20]} 63. g4 $1 {[%emt 0:00:00]} hxg4 {[%emt 0:00:29] [#] Threatens to win with ...g3+.} (63... Rxg4 $2 64. Qh6 Kd8 65. Qf8+ (65. Qxh5 f5 $11) 65... Qe8 66. Bc7+ $1 {[%mdl 512]} (66. Qxf7 $2 Qxf7 67. Rxf7 Rxh4+ 68. Kg3 Rg4+ 69. Kf2 Rxg2+ 70. Ke3 Rg3+ 71. Kf2 h4 $19) 66... Kxc7 67. Qxe8 $18) 64. g3 $2 {[%emt 0:00:00]} (64. Kg3 Rg8 65. h5) (64. Kg3 $1 $18 {aiming for h5.} Rg8 65. h5) 64... b5 $2 {[%emt 0:01:19][%mdl 8192]} (64... Bf3) (64... Bf3 $11) 65. h5 {[%emt 0:00:00][%cal Bh4h5,Bh5h6][%mdl 32]} Rg8 {[%emt 0:00:00]} 66. Qf6 {[%emt 0:00:00]} Bf3 {[%emt 0:00:00]} 67. h6 {[%emt 0:00:00]} Be4 {[%emt 0:00:00]} 68. Rf4 {[%emt 0:00:00]} Bg6 {[%emt 0:00:37]} 69. Rxg4 $2 {[%emt 0:00:00]} (69. Rf1 a5 70. Rc1 Qb7 71. h7 Bxh7 72. Rc7 Qxc7 73. Bxc7 Kd7 74. Qxf7+ Kc6 75. Bxa5) (69. Rf1 {Rc1 would kill now.} Qa7 70. Rc1) 69... Qd8 {[%emt 0:00:28]} 70. Qf3 $40 {[%emt 0:00:00][%mdl 128] Strongly threatening Qc6+. White attacks with force.} Qc8 {[%emt 0:00:23] [#] Against Qc6+} 71. Qf6 $2 {[%emt 0:00:00] Inhibits Rh8.} (71. Bb4 $1 $18) 71... Qc2+ {[%emt 0:01:21]} 72. Kh3 {[%emt 0:00:00][%csl Gd6][%cal Rf6e7]} Kd7 {[%emt 0:00:08]} 73. Qe7+ {[%emt 0:00:05]} (73. h7 $5 Re8 $8 74. h8=Q (74. h8=N $2 Qd1 $19) (74. h8=R Rxh8+ 75. Qxh8 Qc6 $11) 74... Rxh8+ 75. Qxh8 $11) 73... Kc8 $1 {[%emt 0:00:10]} 74. Rxg6 {[%emt 0:00:50][%mdl 64] Really sharp!} (74. Qa7 $5 Qc6 $8 75. Kh2 (75. Qb8+ Kd7 $11) 75... Qc2+ 76. Kh3 $11) 74... Rxg6 $4 {[%emt 0:00:42][%mdl 8192]} (74... Qf5+ $11 75. Kg2 (75. Kh4 Qe4+ 76. g4 Qe1+ 77. Kh3 Qc3+ 78. Kh4 Qe1+ 79. Kh3 Qc3+ 80. Kh2 Qc2+ 81. Kh3 Qc3+ $11) 75... Qe4+ 76. Kg1 Qd4+ 77. Kg2 Qe4+ 78. Kf2 (78. Kg1 Qd4+ 79. Kh2 Qf2+ 80. Kh1 Qe1+ 81. Kh2 Qf2+ 82. Kh3 Qf5+ 83. Kh4 Qe4+ 84. g4 Qe1+ 85. Kh3 Qc3+ 86. Kh2 Qd2+ 87. Kh3 Qc3+ 88. Kg2 Qc2+ 89. Kh3 Qc3+ $11) 78... Qc2+ 79. Kf3 Qd3+ 80. Kg2 Qe4+) 75. Qe8+ {[%emt 0:00:24]} (75. Qxf7 $2 {is the wrong capture.} Rxh6+ 76. Kg4 Qg6+ 77. Qxg6 Rxg6+ $19) 75... Kb7 {[%emt 0:00:38]} 76. Qb8+ {[%emt 0:00:19] Weighted Error Value: White=0.30/Black=0.32} ({Worse is} 76. Qxf7+ Kb6 77. Bf8 Qe4 78. Qf2+ Ka5 79. Qa2+ Kb6 80. Qf2+ Ka5 81. Qa2+ Kb6 82. Qf2+ $11) 1-0

[Event "Israeli Women Championship 2022"]
[Site "Yosiah Arad"]
[Date "2022.12.10"]
[Round "6.5"]
[White "Kochavi, Dana"]
[Black "Kluchik, Julia"]
[Result "1/2-1/2"]
[ECO "C82"]
[WhiteElo "1928"]
[BlackElo "1887"]
[Annotator "TA"]
[PlyCount "97"]
[EventDate "2022.12.05"]
[EventType "tourn"]
[EventCountry "ISR"]
[SourceTitle "playchess.com"]
[Source "ChessBase"]
[SourceQuality "1"]
[TimeControl "40/5400+30:1800+30"]

{[%evp 37,97,-4,-9,-20,-17,-12,-12,-25,-18,-75,-44,-45,-48,-39,0,-82,-72,-258,-239,-263,-88,-88,-88,-88,-88,-88,-88,-92,-88,-88,-88,-116,-117,-124,-127,-158,-102,-104,-39,-39,-39,-39,-39,-39,-18,-18,-18,-18,-18,-18,-18,-18,-18,-18,-16,-16,0,0,0,0,0,0]} 1. e4 {[%emt 0:00:53]} e5 {[%emt 0:00:06]} 2. Nf3 {[%emt 0:00:03]} Nc6 {[%emt 0:00:06]} 3. Bb5 {[%emt 0:00:03]} a6 {[%emt 0:00:09]} 4. Ba4 {[%emt 0:00:03]} Nf6 {[%emt 0:00:05]} 5. O-O {[%emt 0:00:05]} Nxe4 {[%emt 0:00:48]} 6. d4 {[%emt 0:00:07]} b5 {[%emt 0:00:56]} 7. Bb3 {[%emt 0:00:10]} d5 {[%emt 0:00:29]} 8. dxe5 {[%emt 0:00:05]} Be6 {[%emt 0:00:08]} 9. c3 {[%emt 0:00:33]} Bc5 {[%emt 0:01:17]} 10. Nbd2 {[%emt 0:00:47]} O-O {[%emt 0:00:59]} 11. Bc2 {[%emt 0:05:23]} Nxf2 {[%emt 0:06:40]} 12. Rxf2 {[%emt 0:01:36]} Bxf2+ {[%emt 0:00:06]} 13. Kxf2 {[%emt 0:00:17]} f6 {[%emt 0:00:17]} 14. exf6 {[%emt 0:21:18]} Qxf6 {[%emt 0:00:14]} 15. Kg1 {[%emt 0:00:05]} Rae8 {[%emt 0:03:47]} 16. Nf1 {[%emt 0:11:47]} Ne5 {[%emt 0:04:23]} 17. Be3 {[%emt 0:01:44]} Nxf3+ {[%emt 0:04:57]} 18. Qxf3 {[%emt 0:00:12]} Qxf3 {[%emt 0:04:42]} 19. gxf3 {[%emt 0:00:25]} Rxf3 {[%emt 0:00:19]} 20. Bc5 {[%emt 0:05:22] C82: Open Ruy Lopez: 9 c3 without 9...Be7.} Bh3 {[%emt 0:06:58]} 21. Ng3 {[%emt 0:01:29] Prevents Re2.} g6 {[%emt 0:18:13]} 22. Rd1 {[%emt 0:07:15]} Re6 {[%emt 0:05:05]} 23. Bd3 {[%emt 0:04:34]} (23. Bf2 $11) 23... Bg4 {[%emt 0:06:25][%cal Of3g3] Hoping for ...Rxg3+!} 24. Rd2 {[%emt 0:00:53]} (24. Bc2 $2 Rxg3+ $1 {[%mdl 512]} 25. hxg3 Bxd1 26. Bxd1 Re1+ 27. Kf2 Rxd1 $19) 24... h5 {[%emt 0:11:31]} 25. Bf2 {[%emt 0:04:40] [#] Against Re1+} c5 $146 {[%emt 0:05:19]} (25... h4 $5 {[%cal Rh4g3]} 26. Nf1 g5 $15) ({Predecessor:} 25... h4 26. Nf1 g5 27. Be2 Rf4 28. Bxg4 Rxg4+ 29. Kh1 Rf4 30. Kg2 c6 31. h3 g4 32. hxg4 Rxg4+ 33. Kf3 Rge4 34. Bd4 Rg6 35. Rh2 Re1 36. Ne3 Rh6 {½-½ (36) Copar,A-Acedo,H ICCF email 1994}) 26. Bc2 {[%emt 0:02:33]} (26. Bf1 $11 c4 27. Nh1 (27. Rxd5 h4 $11) (27. Bg2 Rd3 $11)) 26... h4 $17 {[%emt 0:07:52]} 27. Nf1 {[%emt 0:00:26] [#]} (27. Bb3 $17 {was necessary.}) 27... Bh3 $1 $19 {[%emt 0:00:41][%cal Oe6e1]} 28. Bd3 {[%emt 0:02:38]} (28. Rxd5 $2 {perishes.} Re2 29. Rd3 Rfxf2 $19) 28... c4 $2 {[%emt 0:01:55]} (28... Re5 $19 {is more deadly. White must now prevent ...c4.} 29. Ng3 (29. Bxh4 $2 {loses.} c4 $19) 29... hxg3 30. hxg3 Rg5) 29. Be2 $17 {[%emt 0:00:59] [#]} Rf5 {[%emt 0:02:00] ...Rg5+ is the strong threat.} 30. Ne3 {[%emt 0:02:05]} Rg5+ {[%emt 0:00:09]} 31. Kh1 {[%emt 0:00:14]} Rge5 {[%emt 0:02:15]} 32. Bf3 {[%emt 0:04:16]} Rxe3 {[%emt 0:00:33]} 33. Bxd5 {[%emt 0:00:12] This pair of bishops is nice.} Rd3 {[%emt 0:02:13]} 34. Bxe6+ {[%emt 0:01:08]} Bxe6 {[%emt 0:00:02][%mdl 4096] Endgame KRB-KRB} 35. Re2 {[%emt 0:00:15]} Bg4 {[%emt 0:02:04]} 36. Re1 {[%emt 0:01:49]} h3 {[%emt 0:00:59]} (36... Rd2 $142 37. Bxh4 Rxb2) 37. Be3 {[%emt 0:00:34]} Rd1 {[%emt 0:01:55]} (37... a5 $17 {Threatens to win with ...b4.} 38. a3 Kf7) 38. Rxd1 $15 {[%emt 0:00:07]} Bxd1 {[%emt 0:00:01] KB-KB} 39. Kg1 {[%emt 0:00:08]} Kf7 {[%emt 0:00:18]} 40. Kf2 {[%emt 0:00:09]} Ke6 {[%emt 0:01:22]} 41. Kg3 {[%emt 0:30:20] The position is equal.} Kf5 {[%emt 0:30:07]} 42. Kxh3 {[%emt 0:00:11]} Ke4 {[%emt 0:00:09]} 43. Bc5 {[%emt 0:00:08]} Kd3 {[%emt 0:00:00]} 44. Kg3 {[%emt 0:00:00]} Kc2 {[%emt 0:00:00]} 45. a4 {[%emt 0:00:00]} Kxb2 {[%emt 0:00:00]} 46. axb5 {[%emt 0:00:00]} Ba4 {[%emt 0:00:00]} (46... axb5 $5 {[%cal Rb2c3]} 47. Bb4 Be2 $11) 47. bxa6 {[%emt 0:00:00]} (47. b6 $5 Bc6 $8 48. Bb4 $11) 47... Kxc3 {[%emt 0:05:26]} 48. a7 {[%emt 0:00:00]} Bc6 {[%emt 0:00:00] Inhibits a8Q.} 49. Kf4 {[%emt 0:00:00] White happily takes the draw.   Weighted Error Value: White=0.20 (precise) /Black=0.18 (very precise)} 1/2-1/2